bitfinex-derivatives/quotes_BTCF0:USTF0_20250213
["timestamp","ask_amount","ask_price","bid_price","bid_amount"]
[1739441942205,0.4295394,96353.0,96352.0,0.02622629]
[1739441942905,0.4295394,96353.0,96352.0,0.01]
[1739441943097,0.222,96353.0,96352.0,0.2175416]
[1739441943699,0.222,96353.0,96352.0,0.59456685]
[1739441943894,0.1721,96353.0,96352.0,0.59456685]
[1739441945504,0.1896422,96357.0,96356.0,0.2075329]
[1739441945694,0.2096422,96357.0,96356.0,0.22375815]
[1739441945892,0.2096422,96357.0,96356.0,0.22375709]
[1739441946401,0.2096422,96357.0,96356.0,0.01622419]
[1739441946698,0.2106422,96357.0,96356.0,0.02322419]
[1739441946907,0.2116422,96357.0,96356.0,0.02322419]
[1739441947417,0.022,96357.0,96356.0,0.23075709]
[1739441948507,0.022,96357.0,96356.0,0.02322419]
[1739441949102,0.022,96357.0,96356.0,0.007]
[1739441949303,0.09032,96357.0,96356.0,0.007]
[1739441949498,0.2978508,96357.0,96356.0,0.007]
[1739441949698,0.2295308,96357.0,96356.0,0.007]
[1739441950197,0.2295308,96357.0,96356.0,0.02322617]
[1739441950505,0.2295308,96357.0,96356.0,0.007]
[1739441957304,0.28001142,96357.0,96356.0,0.007]
[1739441959708,0.64081142,96357.0,96356.0,0.007]
[1739441965017,0.0518861,96351.0,96328.0,0.30977353]
[1739441965317,0.2075911,96329.0,96328.0,0.30977353]
[1739441965622,0.4375911,96329.0,96328.0,0.30977353]
[1739441966521,0.45186247,96329.0,96328.0,0.30977353]
[1739441967118,0.81266247,96329.0,96328.0,0.30977353]
[1739441971720,0.2076105,96320.0,96319.0,0.00015564]
[1739441971922,0.4176105,96320.0,96319.0,0.00015564]
[1739441972812,0.4176105,96320.0,96319.0,0.00115564]
[1739441973424,0.4176105,96320.0,96319.0,0.00215564]
[1739441981027,0.4176105,96320.0,96307.0,0.0951]
[1739441981028,0.2076364,96308.0,96307.0,0.0951]
[1739441981233,0.4176364,96308.0,96307.0,0.0951]
[1739441982130,0.4186364,96308.0,96307.0,0.0961]
[1739441982425,0.43285691,96308.0,96307.0,0.0961]
[1739441982724,0.43385691,96308.0,96307.0,0.0961]
[1739441985633,0.43185691,96308.0,96307.0,0.0951]
[1739441989131,0.22422051,96308.0,96307.0,0.3027385]
[1739441990039,0.21,96308.0,96307.0,0.3027385]
[1739441990539,0.22385993,96308.0,96307.0,0.3027385]
[1739441990734,0.21,96308.0,96307.0,0.3027385]
[1739441992438,0.21,96308.0,96307.0,0.31897156]
[1739441993234,0.4176364,96308.0,96307.0,0.31897156]
[1739441994438,0.4176364,96308.0,96307.0,0.11133306]
[1739441995041,0.4176364,96308.0,96307.0,0.07963306]
[1739441995647,0.4176364,96308.0,96307.0,0.0634]
[1739441996342,0.4176364,96308.0,96307.0,0.0312]
[1739441998751,0.21,96308.0,96304.0,0.2076449]
[1739441998944,0.2076412,96306.0,96304.0,0.2076449]
[1739441999145,0.4176412,96306.0,96304.0,0.2076449]
[1739442000751,0.2076412,96306.0,96305.0,0.2076428]
[1739442003551,0.22167501,96310.0,96309.0,0.2076342]
[1739442003853,0.2076325,96310.0,96309.0,0.22386804]
[1739442004546,0.22178613,96310.0,96309.0,0.22386804]
[1739442005552,0.22178613,96310.0,96309.0,0.2076342]
[1739442005748,0.22178613,96310.0,96309.0,0.22386803]
[1739442005946,0.22178613,96310.0,96309.0,0.01623383]
[1739442008353,0.22178613,96310.0,96309.0,0.22386803]
[1739442009449,0.22178613,96310.0,96309.0,0.01623383]
[1739442010749,0.2076385,96307.0,96306.0,0.20764]
[1739442011849,0.01415363,96310.0,96306.0,0.20764]
[1739442012049,0.2076315,96311.0,96310.0,0.2076295]
[1739442015551,0.16992515,96313.0,96312.0,0.2076278]
[1739442016349,0.37755075,96313.0,96312.0,0.2076278]
[1739442017057,0.37755075,96313.0,96302.0,0.3608]
[1739442017058,0.2076282,96312.0,96302.0,0.3608]
[1739442017253,0.28919251,96312.0,96303.0,0.01623329]
[1739442017456,0.28919251,96312.0,96304.0,0.01623329]
[1739442017653,0.28919251,96312.0,96302.0,0.3608]
[1739442017860,0.28919251,96312.0,96303.0,0.01623334]
[1739442018057,0.207639,96307.0,96304.0,0.01623334]
[1739442018254,0.207639,96307.0,96302.0,0.3608]
[1739442018255,0.08156431,96312.0,96305.0,0.01623334]
[1739442018461,0.2076395,96307.0,96306.0,0.01623375]
[1739442019252,0.4176395,96307.0,96306.0,0.01623375]
[1739442019454,0.2076558,96299.0,96298.0,0.00015573]
[1739442019655,0.4176558,96299.0,96298.0,0.01639095]
[1739442019855,0.4176558,96299.0,96298.0,0.01639127]
[1739442020055,0.4176558,96299.0,96298.0,0.00015573]
[1739442021060,0.4186558,96299.0,96298.0,0.00015573]
[1739442022566,0.4186558,96299.0,96298.0,0.20781363]
[1739442022567,0.211,96299.0,96298.0,0.20781363]
[1739442023959,0.211,96299.0,96298.0,0.00015573]
[1739442024161,0.211,96299.0,96298.0,0.20781363]
[1739442025968,0.211,96299.0,96298.0,0.22404861]
[1739442026155,0.211,96299.0,96298.0,0.22404848]
[1739442026867,0.4186558,96299.0,96298.0,0.01639058]
[1739442027069,0.4186558,96299.0,96298.0,0.00015573]
[1739442027863,0.16312862,96297.0,96279.0,0.3608]
[1739442028069,0.3608,96290.0,96277.0,0.2077011]
[1739442028270,0.2076988,96280.0,96278.0,0.2076999]
[1739442028567,0.4176988,96280.0,96269.0,0.3608]
[1739442028776,0.29156431,96280.0,96279.0,0.2076989]
[1739442028971,0.21,96280.0,96279.0,0.2076989]
[1739442029563,0.2077033,96277.0,96269.0,0.3608]
[1739442029763,0.4377033,96277.0,96276.0,0.2077054]
[1739442029958,0.23,96277.0,96276.0,0.2077054]
[1739442031679,0.24558528,96277.0,96276.0,0.2077054]
[1739442031864,0.232,96277.0,96276.0,0.2077054]
[1739442033159,0.231,96277.0,96276.0,0.2077054]
[1739442033365,0.232,96277.0,96276.0,0.2077054]
[1739442038573,0.4397033,96277.0,96276.0,0.2077054]
[1739442040169,0.232,96277.0,96269.0,0.54782589]
[1739442040369,0.2077164,96273.0,96272.0,0.20771]
[1739442040575,0.4077164,96273.0,96272.0,0.20771]
[1739442041674,0.2077184,96270.0,96269.0,0.75550449]
[1739442041880,0.4177184,96270.0,96269.0,0.5685186]
[1739442043171,0.4187184,96270.0,96269.0,0.5685186]
[1739442043371,0.211,96270.0,96269.0,0.5685186]
[1739442044276,0.4197184,96270.0,96269.0,0.5685186]
[1739442045580,0.212,96270.0,96260.0,0.3608]
[1739442045781,0.207727,96266.0,96265.0,0.20788423]
[1739442046074,0.407727,96266.0,96265.0,0.00015573]
[1739442046675,0.2,96266.0,96265.0,0.20788493]
[1739442047570,0.201,96266.0,96265.0,0.20788493]
[1739442050480,0.201,96266.0,96265.0,0.2241242]
[1739442050678,0.201,96266.0,96265.0,0.22412327]
[1739442050983,0.201,96266.0,96265.0,0.22412297]
[1739442051182,0.201,96266.0,96265.0,0.22412341]
[1739442051785,0.202,96266.0,96265.0,0.22412341]
[1739442051990,0.202,96266.0,96265.0,0.20788493]
[1739442052986,0.202,96266.0,96265.0,0.22412337]
[1739442054275,0.01337555,96279.0,96265.0,0.22412337]
[1739442054476,0.05,96279.0,96278.0,0.5685011]
[1739442055286,0.05,96279.0,96278.0,0.58473821]
[1739442055986,0.051,96279.0,96278.0,0.58473821]
[1739442056489,0.05,96279.0,96278.0,0.58473821]
[1739442056679,0.051,96279.0,96278.0,0.58473821]
[1739442057186,0.052,96279.0,96278.0,0.58573821]
[1739442058488,0.052,96279.0,96278.0,0.58573859]
[1739442061791,0.052,96279.0,96278.0,0.94653859]
[1739442062386,0.00015573,96284.0,96283.0,0.2076903]
[1739442062587,0.05,96284.0,96283.0,0.22392779]
[1739442063397,0.07,96299.0,96298.0,0.207658]
[1739442063584,0.23,96299.0,96298.0,0.568458]
[1739442064185,0.24321147,96299.0,96298.0,0.568458]
[1739442065993,0.24321147,96299.0,96298.0,0.573458]
[1739442067790,0.45086727,96299.0,96298.0,0.005]
[1739442068691,0.45086727,96299.0,96289.0,0.00015582]
[1739442068692,0.2076752,96290.0,96289.0,0.00015582]
[1739442068893,0.7884752,96290.0,96289.0,0.00015582]
[1739442069586,0.5808,96290.0,96270.0,0.2191]
[1739442069792,0.2077005,96279.0,96273.0,0.2077105]
[1739442069993,0.2077005,96279.0,96267.0,0.36995611]
[1739442069994,0.0319,96278.0,96267.0,0.36995611]
[1739442070194,0.2319,96278.0,96267.0,0.36995611]
[1739442070392,0.2319,96278.0,96276.0,0.2077051]
[1739442071793,0.4396015,96278.0,96275.0,0.002]
[1739442071993,0.4406015,96278.0,96275.0,0.002]
[1739442072196,0.45392112,96278.0,96275.0,0.002]
[1739442072596,0.2077045,96277.0,96275.0,0.002]
[1739442072793,0.4406045,96277.0,96275.0,0.002]
[1739442072992,0.2077061,96276.0,96272.0,0.2077135]
[1739442073196,0.2077082,96275.0,96272.0,0.2077135]
[1739442073395,0.2077082,96275.0,96271.0,0.18654433]
[1739442073396,0.2077123,96273.0,96271.0,0.18654433]
[1739442073702,0.4077123,96273.0,96271.0,0.18654433]
[1739442074507,0.4087123,96273.0,96271.0,0.18654433]
[1739442074805,0.4087123,96273.0,96267.0,0.00015582]
[1739442074806,0.2077213,96269.0,96267.0,0.00015582]
[1739442075011,0.4277213,96269.0,96267.0,0.00015582]
[1739442076294,0.4287213,96269.0,96267.0,0.00015582]
[1739442076500,0.4287213,96269.0,96267.0,0.20788032]
[1739442076700,0.4297213,96269.0,96268.0,0.2077227]
[1739442077109,0.222,96269.0,96267.0,0.00015582]
[1739442077311,0.2077227,96268.0,96267.0,0.00015582]
[1739442077505,0.4077227,96268.0,96267.0,0.00015582]
[1739442079508,0.4087227,96268.0,96267.0,0.00015582]
[1739442079696,0.4097227,96268.0,96267.0,0.00015582]
[1739442083513,0.2097227,96268.0,96267.0,0.00015582]
[1739442086118,0.232,96268.0,96264.0,0.00052]
[1739442086416,0.2077486,96256.0,96252.0,0.3608]
[1739442086613,0.4177486,96256.0,96255.0,0.20930868]
[1739442087611,0.43084063,96256.0,96255.0,0.20930868]
[1739442088830,0.43184063,96256.0,96255.0,0.20930868]
[1739442089120,0.43284063,96256.0,96255.0,0.20930868]
[1739442089721,0.212,96256.0,96255.0,0.20930868]
[1739442089923,0.22489611,96256.0,96255.0,0.20930868]
[1739442091816,0.43264471,96256.0,96255.0,0.20930868]
[1739442094222,0.22489611,96256.0,96255.0,0.20930868]
[1739442097628,0.43264471,96256.0,96255.0,0.20930868]
[1739442101135,0.212,96256.0,96255.0,0.20930868]
[1739442101428,0.212,96256.0,96255.0,0.22186688]
[1739442101625,0.212,96256.0,96255.0,0.28296688]
[1739442102418,0.4197486,96256.0,96255.0,0.27040868]
[1739442102617,0.4197486,96256.0,96255.0,0.20930868]
[1739442103326,0.4197486,96256.0,96255.0,0.00155798]
[1739442105530,0.212,96256.0,96255.0,0.20930868]
[1739442106135,0.4197486,96256.0,96255.0,0.20930868]
[1739442110941,0.212,96256.0,96255.0,0.20930868]
[1739442115432,0.212,96256.0,96255.0,0.57010868]
[1739442117136,0.4197485,96256.0,96255.0,0.57010868]
[1739442120841,0.4197485,96256.0,96255.0,0.20930868]
[1739442121046,0.4197485,96256.0,96255.0,0.57010868]
[1739442127441,0.4197485,96256.0,96255.0,0.36235798]
[1739442129553,0.4197485,96256.0,96255.0,0.00155798]
[1739442129741,0.207755,96253.0,96252.0,0.24872578]
[1739442129936,0.427755,96253.0,96252.0,0.24872578]
[1739442130944,0.428755,96253.0,96252.0,0.24872578]
[1739442131252,0.429755,96253.0,96252.0,0.24872578]
[1739442133046,0.207768,96247.0,96246.0,0.00015582]
[1739442133348,0.447768,96247.0,96246.0,0.00015582]
[1739442134544,0.449768,96247.0,96246.0,0.00015582]
[1739442134746,0.2077831,96240.0,96239.0,0.24872578]
[1739442134947,0.8085831,96240.0,96239.0,0.24872578]
[1739442135544,0.2077982,96233.0,96232.0,0.0015587]
[1739442135849,0.44077737,96233.0,96232.0,0.0015587]
[1739442137551,0.44177737,96233.0,96232.0,0.0015587]
[1739442137737,0.44277737,96233.0,96232.0,0.0015587]
[1739442140255,0.23497917,96233.0,96232.0,0.0015587]
[1739442140442,0.23492419,96233.0,96232.0,0.0015587]
[1739442140753,0.49326523,96233.0,96232.0,0.0015587]
[1739442143847,0.44272239,96233.0,96232.0,0.0015587]
[1739442146455,0.22277737,96233.0,96232.0,0.0015587]
[1739442152059,0.22277737,96233.0,96223.0,0.00010381]
[1739442152060,0.2078176,96224.0,96223.0,0.00010381]
[1739442153364,0.2088176,96224.0,96223.0,0.00010381]
[1739442153864,0.2098176,96224.0,96223.0,0.00010381]
[1739442156356,0.2078371,96215.0,96214.0,0.0322]
[1739442157873,0.2088371,96215.0,96214.0,0.0322]
[1739442158171,0.22146166,96215.0,96214.0,0.0322]
[1739442158662,0.22246166,96215.0,96214.0,0.0322]
[1739442159968,0.46246166,96215.0,96214.0,0.0322]
[1739442160567,0.46246166,96215.0,96214.0,0.2400392]
[1739442162669,0.46246166,96215.0,96214.0,0.0322]
[1739442166768,0.2078479,96210.0,96209.0,0.3608]
[1739442166966,0.2078652,96203.0,96202.0,0.2078652]
[1739442167172,0.4278652,96203.0,96202.0,0.2078652]
[1739442168360,0.4288652,96203.0,96202.0,0.2078652]
[1739442168765,0.4298652,96203.0,96202.0,0.2078652]
[1739442169366,0.25723434,96203.0,96202.0,0.2078652]
[1739442169577,0.4298652,96203.0,96202.0,0.2078652]
[1739442170076,0.4498652,96203.0,96202.0,0.2078652]
[1739442171381,0.242,96203.0,96202.0,0.2078652]
[1739442173677,0.232,96203.0,96202.0,0.2078652]
[1739442176579,0.0324922,96203.0,96202.0,0.2078652]
[1739442180582,0.3,96218.0,96217.0,0.2078328]
[1739442180784,0.25220698,96218.0,96217.0,0.5686328]
[1739442180967,0.24,96218.0,96217.0,0.5686328]
[1739442181683,0.241,96218.0,96217.0,0.5706328]
[1739442182682,0.25445122,96218.0,96217.0,0.5706328]
[1739442184379,0.46228182,96218.0,96217.0,0.5706328]
[1739442185583,0.25445122,96218.0,96217.0,0.5706328]
[1739442185973,0.242,96218.0,96217.0,0.5706328]
[1739442191183,0.002,96218.0,96217.0,0.5706328]
[1739442196090,0.052,96218.0,96217.0,0.5706328]
[1739442196596,0.08,96233.0,96232.0,0.2078004]
[1739442196794,0.08,96233.0,96232.0,0.5686004]
[1739442198203,0.2877982,96233.0,96232.0,0.5686004]
[1739442198595,0.2877982,96233.0,96232.0,0.5706004]
[1739442198794,0.2877982,96233.0,96232.0,0.5716004]
[1739442205106,0.2877982,96233.0,96232.0,0.3638]
[1739442205607,0.2877982,96233.0,96232.0,0.003]
[1739442210104,0.44284415,96233.0,96232.0,0.003]
[1739442219412,0.2877982,96233.0,96232.0,0.003]
[1739442223415,0.2077982,96233.0,96232.0,0.003]
[1739442226828,0.25834029,96233.0,96232.0,0.003]
[1739442236938,0.05054209,96233.0,96232.0,0.003]
[1739442237338,0.25834029,96233.0,96232.0,0.003]
[1739442241341,0.36205517,96233.0,96232.0,0.003]
[1739442241644,0.34425697,96233.0,96232.0,0.2108004]
[1739442242153,0.55205517,96233.0,96232.0,0.2108004]
[1739442242447,0.55205517,96233.0,96232.0,0.003]
[1739442244544,0.67147114,96233.0,96232.0,0.003]
[1739442249449,0.44834029,96233.0,96232.0,0.003]
[1739442252352,0.25834029,96233.0,96232.0,0.003]
[1739442255958,0.25834029,96233.0,96232.0,0.2108004]
[1739442257155,0.36041693,96233.0,96232.0,0.2108004]
[1739442257351,0.37261873,96233.0,96232.0,0.2108004]
[1739442258151,0.26731873,96233.0,96232.0,0.2108004]
[1739442261860,0.22,96233.0,96232.0,0.2108004]
[1739442270169,0.0001559,96242.0,96241.0,0.2077809]
[1739442270474,0.0001559,96242.0,96241.0,0.5685809]
[1739442272765,0.01150528,96242.0,96241.0,0.2077809]
[1739442273065,0.01150528,96242.0,96241.0,0.5685809]
[1739442279871,0.01150528,96242.0,96241.0,0.2077809]
[1739442280077,0.16687036,96242.0,96241.0,0.5685809]
[1739442284782,0.06203602,96242.0,96241.0,0.5685809]
[1739442289082,0.26981482,96242.0,96241.0,0.5685809]
[1739442289582,0.01150528,96242.0,96241.0,0.5685809]
[1739442291386,0.21928408,96242.0,96241.0,0.3608]
[1739442291980,0.21928408,96242.0,96241.0,0.5685809]
[1739442295481,0.21928408,96242.0,96241.0,0.3608]
[1739442298977,0.21928408,96242.0,96240.0,0.2077828]
[1739442298978,0.2077809,96241.0,96240.0,0.2077828]
[1739442299584,0.4377809,96241.0,96240.0,0.2077828]
[1739442300479,0.2077939,96236.0,96235.0,0.2077922]
[1739442300685,0.4277939,96236.0,96235.0,0.2077922]
[1739442301681,0.4277939,96236.0,96235.0,0.2097922]
[1739442303285,0.4277939,96236.0,96235.0,0.2107922]
[1739442304799,0.478328,96236.0,96235.0,0.2107922]
[1739442305394,0.478328,96236.0,96235.0,0.003]
[1739442306793,0.478328,96236.0,96235.0,0.2107939]
[1739442307186,0.2705341,96236.0,96235.0,0.2107939]
[1739442308593,0.22,96236.0,96235.0,0.2107939]
[1739442311694,0.4277917,96236.0,96235.0,0.2107939]
[1739442312794,0.22,96236.0,96235.0,0.2107939]
[1739442313998,0.22,96236.0,96235.0,0.5715939]
[1739442317591,0.27053473,96236.0,96235.0,0.5715939]
[1739442321998,0.22,96236.0,96235.0,0.5715939]
[1739442323595,0.22,96236.0,96235.0,0.2107939]
[1739442323800,0.22,96236.0,96235.0,0.5715939]
[1739442335211,0.22,96236.0,96235.0,0.5695939]
[1739442335407,0.22,96236.0,96235.0,0.5705939]
[1739442335605,0.22,96236.0,96235.0,0.5735939]
[1739442336002,0.22,96236.0,96235.0,0.5725939]
[1739442337010,0.22,96236.0,96235.0,0.5705939]
[1739442337211,0.22,96236.0,96235.0,0.5735939]
[1739442339508,0.4277917,96236.0,96235.0,0.3658]
[1739442339710,0.4633917,96236.0,96235.0,0.3658]
[1739442340008,0.4633917,96236.0,96235.0,0.005]
[1739442341422,0.4633917,96236.0,96235.0,0.004]
[1739442341611,0.4633917,96236.0,96235.0,0.002]
[1739442341919,0.4633917,96236.0,96235.0,0.004]
[1739442346525,0.2556,96236.0,96235.0,0.2117939]
[1739442349926,0.0356,96236.0,96235.0,0.2117939]
[1739442350315,0.01170743,96242.0,96235.0,0.004]
[1739442350715,0.2077915,96237.0,96236.0,0.2077894]
[1739442352418,0.25832794,96237.0,96236.0,0.2087894]
[1739442353732,0.05053644,96237.0,96236.0,0.2107894]
[1739442356228,0.25831754,96241.0,96236.0,0.003]
[1739442356425,0.25831754,96241.0,96240.0,0.2077831]
[1739442359736,0.2077811,96241.0,96240.0,0.2077831]
[1739442360534,0.2077896,96237.0,96236.0,0.002]
[1739442360724,0.2077896,96237.0,96236.0,0.2097917]
[1739442360924,0.2077896,96237.0,96236.0,0.2077917]
[1739442362025,0.2077896,96237.0,96236.0,0.2087917]
[1739442362533,0.2077896,96237.0,96236.0,0.2107917]
[1739442364237,0.2077896,96237.0,96236.0,0.003]
[1739442365934,0.2077896,96237.0,96236.0,0.2107917]
[1739442368237,0.2077896,96237.0,96236.0,0.003]
[1739442369837,1.7077896,96237.0,96236.0,0.2107917]
[1739442370341,1.75832665,96237.0,96236.0,0.2107917]
[1739442372837,0.25832665,96237.0,96236.0,0.2107917]
[1739442377944,0.25832665,96237.0,96236.0,0.003]
[1739442378551,0.2077896,96237.0,96236.0,0.003]
[1739442382155,0.36348051,96237.0,96236.0,0.003]
[1739442383250,0.72428051,96237.0,96236.0,0.003]
[1739442383652,0.93428051,96237.0,96236.0,0.003]
[1739442383851,0.207809,96228.0,96227.0,0.3608]
[1739442384051,0.437809,96228.0,96227.0,0.3608]
[1739442384457,1.937809,96228.0,96227.0,0.3608]
[1739442384953,0.437809,96228.0,96227.0,0.3608]
[1739442385148,0.438809,96228.0,96227.0,0.3678]
[1739442390255,0.231,96228.0,96227.0,0.5756111]
[1739442391463,0.28154142,96228.0,96227.0,0.5756111]
[1739442393760,0.25935042,96228.0,96227.0,0.5756111]
[1739442393960,0.46935042,96228.0,96227.0,0.3678]
[1739442399067,0.418809,96228.0,96227.0,0.3678]
[1739442399463,0.418809,96228.0,96227.0,0.007]
[1739442405170,0.418809,96228.0,96223.0,0.0001559]
[1739442405171,0.2078176,96224.0,96223.0,0.0001559]
[1739442405470,0.4278176,96224.0,96223.0,0.0001559]
[1739442406361,0.4288176,96224.0,96223.0,0.0021559]
[1739442406565,0.4288176,96224.0,96223.0,0.0041559]
[1739442406566,0.4298176,96224.0,96223.0,0.0041559]
[1739442407970,0.48036479,96224.0,96223.0,0.0041559]
[1739442408175,1.98036479,96224.0,96223.0,0.0041559]
[1739442408475,0.48036479,96224.0,96223.0,0.0041559]
[1739442411272,0.58793142,96224.0,96223.0,0.0041559]
[1739442411473,0.38011382,96224.0,96223.0,0.0041559]
[1739442412264,0.58793142,96224.0,96223.0,0.0041559]
[1739442412972,0.38011382,96224.0,96223.0,0.0041559]
[1739442413275,0.38011382,96224.0,96223.0,0.2119757]
[1739442415174,0.222,96224.0,96223.0,0.2119757]
[1739442422078,0.48035971,96224.0,96223.0,0.2119757]
[1739442422480,0.48035971,96224.0,96223.0,0.0041559]
[1739442430985,0.4298175,96224.0,96223.0,0.0041559]
[1739442447395,0.48036177,96224.0,96223.0,0.0041559]
[1739442450493,0.4298175,96224.0,96223.0,0.0041559]
[1739442459004,0.48036147,96224.0,96223.0,0.0041559]
[1739442465305,1.98036147,96224.0,96223.0,0.0041559]
[1739442466407,0.48036147,96224.0,96223.0,0.2119755]
[1739442466604,0.27254397,96224.0,96223.0,0.2119755]
[1739442470812,0.2836422,96224.0,96223.0,0.2119755]
[1739442471307,0.23309823,96224.0,96223.0,0.39884078]
[1739442475607,0.23309823,96224.0,96223.0,0.2119755]
[1739442478016,0.01309823,96224.0,96223.0,0.2119755]
[1739442478411,0.01309823,96224.0,96223.0,0.5727755]
[1739442480412,0.002,96224.0,96223.0,0.5727755]
[1739442480718,0.042,96224.0,96223.0,0.5727755]
[1739442493017,0.21550727,96239.0,96223.0,0.5727755]
[1739442493018,0.21550727,96239.0,96238.0,0.2077872]
[1739442493212,0.18671288,96247.0,96238.0,0.2077872]
[1739442493213,0.18671288,96247.0,96238.0,0.3608]
[1739442493515,0.04,96247.0,96246.0,0.5685699]
[1739442494817,0.04,96247.0,96246.0,0.57980287]
[1739442495224,0.18671288,96249.0,96248.0,0.2077656]
[1739442495523,0.21671288,96249.0,96248.0,0.2077656]
[1739442496614,0.21871288,96249.0,96248.0,0.2077656]
[1739442497818,0.04506453,96249.0,96248.0,0.2077656]
[1739442498019,0.032,96249.0,96248.0,0.2077656]
[1739442498222,0.035,96249.0,96248.0,0.2077656]
[1739442499517,0.035,96249.0,96248.0,0.4268656]
[1739442500720,0.0335,96255.0,96254.0,0.2077526]
[1739442500920,0.0935,96255.0,96254.0,0.5685526]
[1739442501428,0.04,96255.0,96254.0,0.3608]
[1739442501622,0.08,96270.0,96267.0,0.2077246]
[1739442501819,0.263,96268.0,96267.0,0.5685246]
[1739442504128,0.27,96268.0,96267.0,0.5695246]
[1739442504428,0.276,96268.0,96267.0,0.5705246]
[1739442504619,0.3002,96268.0,96267.0,0.5695246]
[1739442504815,0.3032,96268.0,96267.0,0.5695246]
[1739442505020,0.2972,96268.0,96267.0,0.5685246]
[1739442505215,0.5079224,96268.0,96267.0,0.5685246]
[1739442508730,0.3002,96268.0,96267.0,0.5685246]
[1739442511529,0.5079224,96268.0,96267.0,0.5685246]
[1739442511939,0.2779224,96268.0,96267.0,0.5685246]
[1739442522944,0.2779224,96268.0,96267.0,0.3608]
[1739442524031,0.2779224,96268.0,96264.0,0.2077307]
[1739442524032,0.0702,96268.0,96264.0,0.2077307]
[1739442524345,0.2077289,96265.0,96264.0,0.2077307]
[1739442526829,0.2127289,96265.0,96264.0,0.2077307]
[1739442527238,0.2077332,96263.0,96262.0,0.3608]
[1739442528445,0.2077376,96261.0,96260.0,0.2077376]
[1739442530243,0.2087376,96261.0,96260.0,0.2077376]
[1739442530648,0.2097376,96261.0,96260.0,0.2077376]
[1739442532544,0.2077484,96257.0,96256.0,0.2077478]
[1739442532746,0.4177484,96257.0,96256.0,0.2077478]
[1739442533450,0.21,96257.0,96251.0,0.207759]
[1739442533648,0.207757,96252.0,96251.0,0.207759]
[1739442533946,0.437757,96252.0,96251.0,0.568559]
[1739442534853,0.437757,96252.0,96251.0,0.570559]
[1739442535150,0.437757,96252.0,96251.0,0.572559]
[1739442535562,0.23,96252.0,96251.0,0.572559]
[1739442536267,0.24063741,96252.0,96251.0,0.572559]
[1739442538875,0.44839441,96252.0,96251.0,0.572559]
[1739442539174,0.24063741,96252.0,96251.0,0.572559]
[1739442539374,0.29115966,96252.0,96251.0,0.572559]
[1739442540969,0.28052225,96252.0,96251.0,0.572559]
[1739442544778,0.23,96252.0,96251.0,0.572559]
[1739442549575,0.18654332,96258.0,96251.0,0.3648]
[1739442549883,0.21654332,96258.0,96257.0,0.2077461]
[1739442551973,0.42428732,96258.0,96257.0,0.2077461]
[1739442553275,0.28826608,96258.0,96257.0,0.2077461]
[1739442557085,0.28826608,96258.0,96257.0,0.5685461]
[1739442557877,0.237744,96258.0,96257.0,0.5685461]
[1739442558682,0.03,96258.0,96257.0,0.5685461]
[1739442559285,0.01094706,96264.0,96257.0,0.3608]
[1739442559489,0.05,96264.0,96263.0,0.2077332]
[1739442560595,0.052,96264.0,96263.0,0.2077332]
[1739442562080,0.02421811,96270.0,96261.0,0.01065695]
[1739442562298,0.24421811,96270.0,96269.0,0.5685202]
[1739442563278,0.24521811,96270.0,96269.0,0.5685202]
[1739442563694,0.24921811,96270.0,96269.0,0.5685202]
[1739442563988,0.2641749,96270.0,96269.0,0.5685202]
[1739442565992,0.23995679,96270.0,96269.0,0.5685202]
[1739442570799,0.44767489,96270.0,96269.0,0.5685202]
[1739442571501,0.23995679,96270.0,96269.0,0.5685202]
[1739442571795,0.01995679,96270.0,96269.0,0.5685202]
[1739442572898,0.07047307,96270.0,96269.0,0.5685202]
[1739442574904,0.07047307,96270.0,96269.0,0.2077202]
[1739442575100,0.07047307,96270.0,96269.0,0.5685202]
[1739442580608,0.01995679,96270.0,96269.0,0.2077202]
[1739442580798,0.01995679,96270.0,96269.0,0.5685202]
[1739442584516,0.009,96270.0,96269.0,0.5685202]
[1739442588414,0.069,96270.0,96269.0,0.5685202]
[1739442589125,0.11951556,96270.0,96269.0,0.5685202]
[1739442594226,0.069,96270.0,96269.0,0.5685202]
[1739442598621,0.009,96270.0,96269.0,0.5685202]
[1739442601528,0.009,96270.0,96263.0,0.18686528]
[1739442601529,0.207731,96264.0,96263.0,0.18686528]
[1739442601825,0.437731,96264.0,96263.0,0.18686528]
[1739442602125,0.2077418,96259.0,96258.0,0.3608]
[1739442602428,0.4277418,96259.0,96258.0,0.3608]
[1739442602630,0.4277418,96259.0,96258.0,0.568544]
[1739442606730,0.56957396,96259.0,96258.0,0.568544]
[1739442610426,0.36183216,96259.0,96258.0,0.568544]
[1739442611029,0.2077591,96251.0,96250.0,0.2]
[1739442611229,0.4377591,96251.0,96250.0,0.4077612]
[1739442611536,0.23,96251.0,96250.0,0.4077612]
[1739442611926,0.4377591,96251.0,96250.0,0.4077612]
[1739442612235,0.23,96251.0,96250.0,0.4077612]
[1739442612436,0.23,96251.0,96250.0,0.7685612]
[1739442612633,0.231,96251.0,96250.0,0.7685612]
[1739442612929,0.234,96251.0,96250.0,0.7685612]
[1739442613332,0.2450706,96251.0,96250.0,0.7685612]
[1739442613532,0.2430706,96251.0,96250.0,0.7685612]
[1739442614234,0.232,96251.0,96250.0,0.7685612]
[1739442633854,0.002,96251.0,96250.0,0.7685612]
[1739442635250,0.002,96251.0,96250.0,0.4077612]
[1739442635758,0.2097594,96251.0,96250.0,0.4077612]
[1739442639953,0.002,96251.0,96250.0,0.4077612]
[1739442640164,0.2097596,96251.0,96250.0,0.4077612]
[1739442641459,0.4097596,96251.0,96250.0,0.2]
[1739442641665,0.4421596,96251.0,96250.0,0.2]
[1739442642161,0.4421596,96251.0,96250.0,0.4077617]
[1739442642361,0.49268626,96251.0,96250.0,0.4077617]
[1739442645568,0.4421596,96251.0,96250.0,0.4077617]
[1739442651763,0.2421596,96251.0,96250.0,0.4077617]
[1739442653366,0.002,96251.0,96250.0,0.4077617]
[1739442653763,0.05252939,96251.0,96250.0,0.4077617]
[1739442653966,0.05252939,96251.0,96250.0,0.7685617]
[1739442654163,0.27252939,96251.0,96250.0,0.7685617]
[1739442656674,0.222,96251.0,96250.0,0.7685617]
[1739442662669,0.4297596,96251.0,96250.0,0.7685617]
[1739442663667,0.222,96251.0,96250.0,0.7685617]
[1739442675278,0.222,96251.0,96250.0,0.4077617]
[1739442677676,0.27252746,96251.0,96250.0,0.4077617]
[1739442681100,0.48028706,96251.0,96250.0,0.4077617]